bitfinex-derivatives/quotes_ETHF0:USTF0_20220108
["timestamp","ask_amount","ask_price","bid_price","bid_amount"]
[1641611193697,11.40763442,3205.8,3205.7,0.21723636]
[1641611197502,7.40763442,3205.8,3205.7,0.21723636]
[1641611199204,5.847937,3205.8,3205.7,0.21723636]
[1641611199404,2.14585602,3206.1,3205.7,0.21723636]
[1641611199704,2.14585602,3206.1,3205.7,1.71723636]
[1641611199904,2.14585602,3206.1,3205.8,2.00479]
[1641611200104,2.14585602,3206.1,3205.8,2.88149]
[1641611200506,2.14585602,3206.1,3205.9,1.5]
[1641611200705,2.14585602,3206.1,3205.8,2.88149]
[1641611201104,4.64248211,3206.3,3205.9,0.264788]
[1641611201704,2.00479,3206.3,3205.9,0.264788]
[1641611203910,2.00479,3206.3,3205.9,1.764788]
[1641611204909,2.00479,3206.3,3205.9,0.264788]
[1641611209314,2.00479,3206.3,3205.8,2.00479]
[1641611209516,2.220909,3206.3,3205.8,2.00479]
[1641611210615,2.220909,3206.3,3205.8,3.50479]
[1641611210816,2.220909,3206.3,3205.8,3.769578]
[1641611211216,2.00479,3206.3,3206.2,1.5]
[1641611211415,2.00479,3206.3,3206.2,2.00988135]
[1641611211617,2.00479,3206.3,3206.2,2.65066835]
[1641611212719,2.00479,3206.3,3206.2,4.15066835]
[1641611214725,2.00479,3206.3,3206.2,2.65066835]
[1641611215426,2.220909,3206.3,3206.2,1.44248135]
[1641611217226,2.220909,3206.3,3206.2,1.07695259]
[1641611221133,4.20797291,3206.3,3206.2,1.07695259]
[1641611223035,2.220909,3206.3,3206.2,1.07695259]
[1641611224737,4.20850125,3206.3,3206.2,1.07695259]
[1641611225739,2.220909,3206.3,3206.2,1.07695259]
[1641611227543,2.220909,3206.3,3206.2,0.80120629]
[1641611228342,3.28408777,3206.3,3206.2,0.80120629]
[1641611228544,6.34344712,3206.3,3206.2,6.29e-06]
[1641611228743,6.34344712,3206.3,3205.1,2.00479]
[1641611228744,19.73344712,3206.3,3205.1,2.00479]
[1641611228941,4.0,3205.3,3205.1,2.00479]
[1641611229143,0.216119,3205.2,3205.1,2.00479]
[1641611229343,0.856906,3205.2,3205.1,2.00479]
[1641611229845,0.856906,3205.2,3205.1,3.38432728]
[1641611230351,1.55975824,3205.4,3205.1,3.38432728]
[1641611231747,0.640787,3205.5,3205.1,3.38432728]
[1641611231950,0.216119,3205.3,3205.1,3.38432728]
[1641611237652,0.640787,3205.5,3205.1,3.38432728]
[1641611237854,0.856906,3205.5,3205.1,3.38432728]
[1641611248277,0.216119,3205.5,3205.1,3.38432728]
[1641611250375,1.98794919,3205.6,3205.1,3.38432728]
[1641611250777,3.54753228,3205.7,3205.2,0.264788]
[1641611250977,4.991654,3205.5,3205.2,0.264788]
[1641611251377,4.991576,3205.6,3205.2,0.264788]
[1641611251576,4.18831928,3205.7,3205.2,0.264788]
[1641611252878,3.54753228,3205.7,3205.2,0.264788]
[1641611253076,3.54753228,3205.7,3205.2,1.764788]
[1641611254279,1.55958309,3205.7,3205.6,2.00479]
[1641611254478,1.55958309,3205.7,3205.6,3.1307155]
[1641611254978,2.41648909,3205.7,3205.6,3.1307155]
[1641611256379,1.55958309,3205.7,3205.6,3.1307155]
[1641611256780,1.98794919,3205.9,3205.6,4.6307155]
[1641611257080,2.63769211,3206.0,3205.7,0.905575]
[1641611257280,2.63769211,3206.0,3205.7,1.650475]
[1641611257479,2.63769211,3206.0,3205.7,2.99784109]
[1641611258282,0.4709,3206.2,3205.7,2.99784109]
[1641611258480,0.687019,3206.2,3205.7,2.99784109]
[1641611259580,4.0,3206.1,3205.7,1.34736609]
[1641611259781,0.216119,3206.0,3205.7,1.34736609]
[1641611266089,4.0,3206.1,3205.7,1.34736609]
[1641611266485,4.0,3206.1,3205.8,0.264788]
[1641611267587,0.4709,3206.2,3205.8,0.264788]
[1641611268189,4.64248211,3206.3,3205.8,0.264788]
[1641611268190,2.00479,3206.3,3205.8,0.264788]
[1641611273496,2.861696,3206.3,3205.8,0.264788]
[1641611274097,4.4209897,3206.3,3205.8,0.264788]
[1641611274901,4.4209897,3206.3,3205.7,1.34736609]
[1641611274902,10.40880039,3206.3,3205.7,1.34736609]
[1641611275101,10.97470039,3206.3,3205.7,1.34736609]
[1641611277203,1.98781069,3206.2,3205.7,1.34736609]
[1641611277603,0.216119,3206.1,3205.7,1.34736609]
[1641611280305,1.77554158,3206.1,3205.7,1.34736609]
[1641611280511,3.76335227,3206.1,3205.7,1.34736609]
[1641611285211,1.98781069,3206.0,3205.7,1.34736609]
[1641611286716,0.216119,3205.9,3205.7,1.34736609]
[1641611286916,1.98781069,3206.0,3205.7,1.34736609]
[1641611287117,1.98781069,3206.1,3205.7,2.07776609]
[1641611287320,2.20392969,3206.1,3205.7,2.07776609]
[1641611287517,1.5594469,3206.0,3205.7,2.07776609]
[1641611287719,2.20392969,3206.1,3205.7,2.07776609]
[1641611290022,1.5594469,3206.0,3205.7,2.07776609]
[1641611290625,1.5594469,3206.0,3205.9,2.00479]
[1641611291226,1.98781069,3206.1,3205.9,2.62089]
[1641611291425,1.98781069,3206.1,3206.0,0.264788]
[1641611292025,1.98781069,3206.2,3206.0,0.264788]
[1641611293425,1.55921833,3206.5,3206.0,0.264788]
[1641611294526,1.55921833,3206.5,3206.4,2.00479]
[1641611294727,1.55921833,3206.5,3206.4,4.3068916]
[1641611295827,1.55921833,3206.5,3206.4,3.6661046]
[1641611296428,1.55921833,3206.5,3206.4,3.4013166]
[1641611298930,1.55921833,3206.5,3206.4,3.6661046]
[1641611299135,1.98781069,3206.8,3206.4,3.6661046]
[1641611299334,1.98781069,3206.8,3206.7,1.5]
[1641611299530,0.60717988,3206.9,3206.7,2.421588]
[1641611299531,0.06599057,3206.9,3206.7,2.421588]
[1641611299732,2.63769211,3207.0,3206.7,2.421588]
[1641611299931,2.63769211,3207.0,3206.9,1.5]
[1641611300132,2.63769211,3207.0,3206.9,2.405575]
[1641611300333,3.29492526,3207.2,3206.9,2.405575]
[1641611300532,3.29492526,3207.9,3206.9,2.405575]
[1641611300735,2.67862917,3207.6,3207.1,4.00958]
[1641611301232,2.67862917,3207.6,3207.2,1.10263985]
[1641611301833,0.03,3207.6,3207.2,1.10263985]
[1641611302632,0.03,3207.6,3207.5,2.00479]
[1641611302832,0.03,3207.6,3207.5,2.986278]
[1641611309140,0.0001,3207.6,3207.5,4.486278]
[1641611309338,2.01302918,3208.5,3207.5,4.486278]
[1641611309539,2.01302918,3208.5,3207.7,1.5]
[1641611309738,2.01302918,3208.5,3207.8,0.905575]
[1641611310139,0.03,3208.5,3207.8,0.905575]
[1641611310660,0.03,3208.5,3208.4,2.00479]
[1641611310840,0.03,3208.5,3208.4,4.03878671]
[1641611311639,0.03,3208.5,3208.4,4.30357471]
[1641611313440,0.03,3208.5,3208.4,4.03878671]
[1641611315147,0.03,3208.5,3208.4,4.30357471]
[1641611317453,0.03,3208.5,3208.4,4.03878671]
[1641611317653,0.03,3208.5,3208.4,3.34538671]
[1641611317854,1.746119,3208.5,3207.5,2.00479]
[1641611318053,4.0,3208.1,3207.5,2.00479]
[1641611318257,3.27472978,3208.0,3207.5,2.00479]
[1641611318454,3.83652978,3208.0,3207.5,2.00479]
[1641611318655,2.33652978,3208.0,3207.5,2.00479]
[1641611319057,2.33652978,3208.0,3207.6,0.96824611]
[1641611319457,0.640787,3207.9,3207.6,0.96824611]
[1641611319856,0.216119,3207.8,3207.6,0.96824611]
[1641611324673,5.374,3208.3,3207.7,0.264788]
[1641611324870,6.014787,3208.3,3207.7,1.174888]
[1641611325072,5.374,3208.3,3207.7,1.174888]
[1641611325275,33.51102918,3208.9,3207.7,1.174888]
[1641611325573,33.51102918,3208.9,3207.8,1.5]
[1641611326075,2.00479,3209.0,3208.0,1.5]
[1641611326372,38.90222918,3209.2,3208.1,1.5]
[1641611326373,33.52822918,3209.2,3208.1,1.5]
[1641611326572,33.52822918,3209.2,3208.2,0.905575]
[1641611326775,33.52822918,3209.2,3208.4,4.00958]
[1641611326974,33.52822918,3209.2,3208.4,4.67948]
[1641611327178,1.98302918,3209.2,3208.4,4.944268]
[1641611327576,2.67279596,3209.4,3208.4,4.944268]
[1641611327775,0.03,3209.4,3208.4,4.944268]
[1641611329275,0.03,3209.4,3208.4,6.444268]
[1641611329876,0.03,3209.4,3208.6,1.5]
[1641611330278,0.03,3209.4,3208.7,0.264788]
[1641611330777,0.03,3209.4,3209.3,4.00958]
[1641611330977,0.03,3209.4,3209.3,4.915155]
[1641611331778,0.03,3209.4,3209.3,5.97873382]
[1641611332679,0.03,3209.4,3209.3,4.56602345]
[1641611344188,0.03,3210.3,3209.3,4.56602345]
[1641611349093,0.03,3210.3,3209.3,6.06602345]
[1641611349293,0.03,3210.3,3209.6,1.5]
[1641611349595,0.03,3210.3,3209.7,0.264788]
[1641611349792,0.03,3210.3,3209.7,1.76119531]
[1641611350995,0.03,3210.3,3209.7,3.76598531]
[1641611351393,5.374,3210.8,3210.2,1.5]
[1641611351594,5.374,3210.8,3210.5,1.5]
[1641611351792,5.374,3210.8,3210.5,0.6851]
[1641611351993,0.03,3211.2,3210.5,0.6851]
[1641611352194,0.03,3211.2,3210.6,0.264788]
[1641611352493,0.03,3211.2,3210.6,1.67004777]
[1641611352896,2.64279596,3211.7,3210.6,1.67004777]
[1641611352897,2.64279596,3211.7,3211.0,1.5]
[1641611353097,2.64279596,3211.7,3211.2,2.00479]
[1641611353300,2.64279596,3211.7,3211.2,2.82849]
[1641611353699,30.4046,3211.9,3211.3,0.905575]
[1641611353899,2.00479,3212.1,3211.3,0.905575]
[1641611354098,2.00314853,3212.2,3211.3,0.905575]
[1641611355001,0.03,3212.2,3211.7,2.00479]
[1641611355200,4.0,3212.1,3211.7,2.00479]
[1641611355405,1.5,3212.0,3211.7,3.23170559]
[1641611357204,5.053519,3212.1,3211.7,3.49649359]
[1641611357404,4.8374,3212.1,3211.7,3.49649359]
[1641611357807,4.640787,3212.1,3211.7,2.7704486]
[1641611358009,6.140787,3212.1,3211.7,2.5056606]
[1641611358408,0.216119,3212.0,3211.7,2.5056606]
[1641611359610,4.0,3212.1,3211.7,2.5056606]
[1641611359809,1.58657771,3212.2,3211.7,2.5056606]
[1641611359810,0.03,3212.2,3211.7,2.5056606]
[1641611360210,0.03,3212.2,3211.8,0.264788]
[1641611360410,0.670787,3212.2,3211.8,0.264788]
[1641611360812,0.886906,3212.2,3211.8,0.264788]
[1641611361010,1.5,3211.9,3211.2,2.00479]
[1641611361211,1.5,3211.6,3211.2,2.00479]
[1641611361410,0.216119,3211.7,3211.2,2.00479]
[1641611362110,0.216119,3211.7,3211.2,3.34770042]
[1641611362311,0.216119,3211.7,3211.2,3.61248842]
[1641611362510,0.856906,3211.7,3211.2,3.34770042]
[1641611363113,2.861696,3211.7,3211.3,0.264788]
[1641611363314,2.220909,3211.7,3211.3,0.854088]
[1641611363714,2.220909,3211.7,3211.3,1.494875]
[1641611363911,2.00479,3211.7,3211.3,1.494875]
[1641611364513,2.00479,3211.7,3211.3,0.854088]
[1641611364712,0.640787,3211.6,3211.3,0.854088]
[1641611365313,0.640787,3211.6,3211.3,0.5893]
[1641611365614,0.856906,3211.6,3211.2,3.34770042]
[1641611366315,4.0,3211.3,3211.2,1.34291042]
[1641611366713,4.216119,3211.3,3211.2,1.34291042]
[1641611367112,6.220909,3211.3,3211.2,1.34291042]
[1641611372919,9.27798357,3211.3,3210.2,2.00479]
[1641611373118,4.0,3210.5,3210.2,2.00479]
[1641611373420,0.856906,3210.4,3210.2,2.00479]
[1641611374118,0.856906,3210.4,3209.8,2.00479]
[1641611374918,1.5,3210.3,3209.9,1.43848341]
[1641611375119,0.216119,3210.2,3209.9,1.43848341]
[1641611375518,4.0,3210.0,3209.9,1.43848341]
[1641611375920,4.216119,3210.0,3209.9,1.43848341]
[1641611376821,5.77374897,3210.0,3209.9,1.43848341]
[1641611377022,7.27374897,3210.0,3209.9,1.43848341]
[1641611378123,12.25824997,3210.0,3209.9,1.43848341]
[1641611378722,12.25824997,3210.0,3209.0,2.00479]
[1641611378924,12.25824997,3210.0,3209.1,0.85715068]
[1641611379125,2.00479,3209.6,3209.1,0.85715068]
[1641611379325,0.856906,3209.5,3209.1,0.85715068]
[1641611379824,4.856906,3209.5,3209.1,0.85715068]
[1641611385028,2.00479,3209.6,3209.1,1.95853868]
[1641611385229,4.0,3210.0,3209.1,1.95853868]
[1641611385428,2.00479,3210.4,3209.1,1.95853868]
[1641611385627,2.00479,3210.4,3209.1,3.45853868]
[1641611386230,2.00479,3210.4,3209.1,1.95853868]
[1641611387734,4.0,3210.5,3209.3,1.5]
[1641611388034,38.7928,3210.6,3209.3,1.5]
[1641611388236,38.7928,3210.6,3209.1,1.69375068]
[1641611388434,4.0,3210.8,3209.1,1.69375068]
[1641611388836,4.0,3210.8,3209.3,1.5]
[1641611389236,4.0,3210.8,3209.1,1.69375068]
[1641611389237,2.00479,3210.6,3209.9,2.00479]
[1641611389437,0.856906,3210.5,3210.0,1.29248121]
[1641611390438,4.0,3210.1,3210.0,1.29248121]
[1641611392237,4.216119,3210.1,3210.0,1.29248121]
[1641611394241,4.0,3210.1,3210.0,1.29248121]
[1641611395041,2.00479,3210.6,3210.0,1.55726921]
[1641611395241,2.00479,3210.6,3210.0,2.37876921]
[1641611395442,0.640787,3210.5,3210.0,2.37876921]
[1641611395942,2.00479,3211.0,3210.0,2.37876921]
[1641611397344,2.00479,3211.0,3210.4,2.00479]
[1641611397541,0.640787,3210.9,3210.5,1.23875382]
[1641611397743,2.00479,3211.0,3210.6,0.640787]
[1641611398142,2.00479,3211.0,3210.7,0.264788]
[1641611403245,0.216119,3210.9,3210.5,0.97396582]
[1641611403649,4.0,3210.7,3210.5,0.97396582]
[1641611404048,4.216119,3210.7,3210.5,0.97396582]
[1641611408253,4.216119,3210.7,3210.5,1.61475282]
[1641611409054,0.216119,3210.7,3210.5,1.61475282]
[1641611409254,0.216119,3210.7,3210.5,0.97396582]
[1641611410856,1.133919,3210.7,3210.5,0.97396582]
[1641611411956,0.9178,3210.7,3210.5,0.97396582]
[1641611412756,2.00479,3211.0,3210.6,0.264788]
[1641611413759,2.00479,3211.0,3210.6,0.888388]
[1641611418162,2.00479,3211.0,3210.6,0.264788]
[1641611419164,2.91169,3211.0,3210.6,0.264788]
[1641611423168,3.127809,3211.0,3210.5,0.97396582]
[1641611423369,4.0,3210.7,3210.5,0.97396582]
[1641611423772,0.216119,3210.6,3210.5,0.97396582]
[1641611428572,3.27359128,3210.6,3210.5,6.582e-05]
[1641611428773,1.77359128,3210.6,3210.5,6.582e-05]
[1641611428973,3.27359128,3210.6,3210.5,6.582e-05]
[1641611429473,1.77359128,3210.6,3210.5,6.582e-05]
[1641611429975,3.27359128,3210.6,3210.5,6.582e-05]
[1641611430175,1.77359128,3210.6,3210.5,6.582e-05]
[1641611430374,3.27359128,3210.6,3210.5,6.582e-05]
[1641611431375,0.6545,3210.5,3208.5,1.30827823]
[1641611431575,1.5,3209.1,3208.5,3.31306823]
[1641611431775,1.668806,3209.1,3208.5,3.31306823]
[1641611432176,3.22690194,3209.1,3209.0,0.17316068]
[1641611432476,4.72690194,3209.1,3208.5,3.31306823]
[1641611432674,5.55838489,3208.6,3208.5,3.31306823]
[1641611432876,5.77450389,3208.6,3208.5,3.31306823]
[1641611433275,5.77450389,3208.6,3208.5,1.52271155]
[1641611433475,7.77929389,3208.6,3208.5,0.21450155]
[1641611433875,12.76596989,3208.6,3208.5,1.55e-06]
[1641611435277,26.15596989,3208.6,3207.3,0.031]
[1641611435479,2.00479,3207.7,3207.3,0.031]
[1641611435680,2.72589,3207.7,3207.3,0.031]
[1641611435881,0.856906,3207.6,3207.3,0.031]
[1641611436179,0.856906,3207.6,3207.4,1.15926953]
[1641611438282,4.0,3207.5,3207.4,1.15926953]
[1641611439085,5.55887318,3207.5,3207.4,1.15926953]
[1641611439285,4.0,3207.5,3207.4,1.15926953]
[1641611439484,6.00479,3207.5,3207.4,1.15926953]
[1641611439684,10.993176,3207.5,3207.4,1.15926953]
[1641611440287,12.55208321,3207.5,3207.4,1.15926953]
[1641611440887,10.993176,3207.5,3207.4,1.15926953]
[1641611441091,6.00479,3207.5,3207.4,1.15926953]
[1641611443793,6.00479,3207.5,3207.3,0.031]
[1641611444893,0.216119,3207.4,3207.3,0.031]
[1641611445094,1.032319,3207.4,3207.3,0.031]
[1641611445692,2.59122621,3207.4,3207.3,0.031]
[1641611446093,2.59122621,3207.4,3206.4,0.89526852]
[1641611446094,15.98122621,3207.4,3206.4,0.89526852]
[1641611446294,5.55941771,3206.5,3206.4,0.031]
[1641611446495,6.47651771,3206.5,3206.4,0.031]
[1641611446693,7.33342371,3206.5,3206.4,0.031]
[1641611446894,1.774006,3206.5,3206.4,0.031]
[1641611447494,5.783586,3206.5,3206.4,1.39665223]
[1641611447895,0.9171,3206.5,3206.4,0.031]
[1641611448196,1.55883673,3207.5,3206.4,0.295788]
[1641611448394,1.55883673,3207.5,3206.4,0.861988]
[1641611448595,1.55883673,3207.5,3207.3,1.08386594]
[1641611448796,0.856906,3207.4,3207.3,1.08386594]
[1641611449595,2.861696,3207.4,3207.3,1.08386594]
[1641611453799,4.361696,3207.4,3207.3,1.08386594]
[1641611454200,9.350237,3207.4,3207.3,1.08386594]
[1641611454998,9.350237,3207.4,3206.4,0.031]
[1641611455200,4.0,3206.6,3206.4,0.031]
[1641611455399,0.640787,3206.5,3206.4,0.031]
[1641611455599,2.861696,3206.5,3206.4,0.031]
[1641611456099,2.861696,3206.5,3206.4,0.95857374]
[1641611456301,5.92108453,3206.5,3206.4,0.95857374]
[1641611456500,10.91102653,3206.5,3206.4,7.374e-05]
[1641611456700,10.91102653,3206.5,3205.4,0.76935016]
[1641611456900,4.0,3205.7,3205.4,0.76935016]
[1641611457100,0.216119,3205.6,3205.4,0.76935016]
[1641611457499,0.856906,3205.6,3205.4,0.76935016]
[1641611458100,0.856906,3205.6,3205.5,1.47449841]
[1641611459701,2.00479,3205.7,3205.5,1.47449841]
[1641611460703,0.216119,3205.6,3205.5,1.47449841]
[1641611462504,2.00479,3205.7,3205.5,1.47449841]
[1641611463508,2.00479,3205.7,3205.5,1.73928641]
[1641611466610,2.00479,3206.5,3205.6,1.5]
[1641611467210,2.00479,3206.5,3206.0,1.5]
[1641611467411,1.55912838,3206.9,3206.3,1.5]
[1641611467611,1.55894609,3207.3,3206.6,1.5]
[1641611467811,2.00479,3206.9,3206.6,1.5]
[1641611468012,2.00479,3206.9,3206.7,1.764788]
[1641611468209,2.00479,3206.9,3206.7,2.3103]
[1641611468409,2.00479,3206.9,3206.8,1.5]
[1641611468610,2.00479,3206.9,3206.8,3.0468298]
[1641611468814,2.00479,3206.9,3206.8,3.3116178]
[1641611470414,4.0,3207.6,3206.8,3.3116178]
[1641611471718,4.0,3207.6,3207.4,2.00479]
[1641611471917,4.0,3207.6,3207.5,1.05764689]
[1641611472518,4.0,3207.6,3207.5,1.32243489]
[1641611479027,4.0,3207.6,3207.5,1.96322189]
[1641611479229,4.0,3207.6,3207.5,2.61532189]
[1641611479928,4.0,3207.6,3207.5,1.97453489]
[1641611480630,4.0,3207.6,3207.5,1.32243489]
[1641611481832,4.0,3207.6,3207.5,2.14323489]
[1641611491344,67.57022304,3208.5,3207.5,3.64323489]
[1641611491345,3.56314818,3208.5,3207.5,3.64323489]
[1641611491545,1.97162339,3208.9,3208.0,1.5]
[1641611491746,1.97162339,3208.9,3207.5,2.14323489]
[1641611491747,1.97162339,3208.9,3208.4,1.5]
[1641611491946,1.97162339,3208.9,3208.5,0.905575]
[1641611492152,1.97162339,3208.9,3208.8,4.00958]
[1641611492350,1.97162339,3208.9,3208.8,5.1312841]
[1641611492548,1.97162339,3208.9,3208.8,5.3960721]
[1641611493753,0.03,3209.4,3208.8,5.3960721]
[1641611493953,0.246119,3209.4,3208.8,5.3960721]
[1641611494153,0.246119,3209.4,3209.3,2.00479]
[1641611494354,0.246119,3209.4,3209.3,2.87429]
[1641611494555,0.246119,3209.4,3209.3,4.42467294]
[1641611494857,0.03,3209.4,3209.3,4.42467294]
[1641611497055,0.03,3209.4,3209.3,2.41988294]
[1641611497657,0.246119,3209.4,3209.3,2.41988294]
[1641611500760,0.246119,3209.4,3209.3,2.13133533]
[1641611502261,2.250909,3209.4,3209.3,2.13133533]
[1641611505465,2.03479,3209.4,3209.3,2.13133533]
[1641611505665,0.03,3209.4,3209.3,2.13133533]
[1641611506066,1.97162339,3209.7,3209.3,2.39612333]
[1641611506268,1.97162339,3209.7,3209.4,2.00479]
[1641611506471,0.17992497,3209.8,3209.4,2.00479]
[1641611506667,2.00479,3209.9,3209.4,2.00479]
[1641611506668,2.00479,3209.9,3209.5,0.264788]
[1641611511475,2.00479,3209.9,3209.5,1.764788]
[1641611511674,4.0,3210.1,3209.5,1.764788]
[1641611512275,4.0,3210.1,3210.0,2.00479]
[1641611512476,4.0,3210.1,3210.0,5.28273157]
[1641611513479,4.0,3210.1,3210.0,6.28844398]
[1641611514781,4.0,3210.1,3210.0,4.77027741]
[1641611514982,0.03,3210.3,3210.0,4.77027741]
[1641611516385,0.03,3210.3,3210.1,2.00479]
[1641611516587,0.03,3210.3,3210.2,0.264788]
[1641611521789,0.03,3210.3,3210.0,1.00571241]
[1641611521988,5.5,3210.1,3210.0,1.00571241]
[1641611522187,4.0,3210.1,3208.3,29.5605]
[1641611522387,10.989136,3210.1,3209.4,2.00479]
[1641611522588,0.216119,3210.0,3209.5,0.640787]
[1641611522787,0.216119,3210.0,3209.5,0.905575]
[1641611522990,2.00479,3210.1,3209.8,1.5]
[1641611523189,0.03,3210.3,3210.0,1.5]
[1641611523788,0.03,3210.3,3210.1,1.39343638]
[1641611523989,0.03,3210.3,3210.1,1.27434075]
[1641611524487,0.03,3210.3,3210.2,2.645577]
[1641611526091,0.03,3210.3,3210.2,2.00479]
[1641611526692,0.03,3210.3,3210.2,3.489277]
[1641611529294,4.0,3211.0,3210.3,0.264788]
[1641611529499,4.0,3211.0,3210.6,1.5]
[1641611530097,4.0,3211.0,3210.2,3.489277]
[1641611530098,2.17515198,3211.2,3210.9,1.5]
[1641611530298,0.03,3212.2,3211.1,1.5]
[1641611530497,0.03,3212.2,3211.6,5.50958]
[1641611530697,0.03,3212.2,3211.6,6.520368]
[1641611530896,3.63433537,3211.9,3211.8,1.5]
[1641611531299,0.03,3212.2,3211.8,2.86785165]
[1641611532199,0.03,3212.2,3211.9,0.640787]
[1641611532397,0.03,3212.2,3212.1,2.00479]
[1641611533003,0.03,3212.2,3212.1,2.269578]
[1641611535106,2.00479,3212.8,3212.1,2.269578]
[1641611540007,2.220909,3212.8,3212.1,2.269578]
[1641611540209,4.0,3212.4,3212.1,2.00479]
[1641611540410,5.125419,3212.4,3212.1,2.00479]
[1641611541610,1.55659225,3212.2,3211.8,1.10306365]
[1641611541813,5.5,3211.9,3210.4,63.9435]
[1641611542012,4.0,3211.3,3210.4,32.0842]
[1641611542216,0.7545,3211.3,3210.6,1.5]
[1641611542416,0.7545,3211.3,3211.0,2.00479]
[1641611543216,0.7545,3211.3,3211.1,0.264788]
[1641611543416,2.00479,3211.7,3211.1,0.264788]
[1641611543616,0.216119,3211.5,3211.2,1.14162453]
[1641611544417,4.0,3212.0,3211.2,1.78241153]
[1641611544720,0.216119,3211.9,3211.3,0.264788]
[1641611546517,0.216119,3211.9,3211.5,2.00479]
[1641611548623,1.5,3211.6,3211.5,2.00479]
[1641611548823,1.5,3211.6,3209.9,31.5122]
[1641611548824,3.89796751,3211.6,3209.9,31.5122]
[1641611549022,4.0,3210.6,3209.9,30.0122]
[1641611549223,0.216119,3210.5,3209.8,31.8118]
[1641611549422,0.216119,3210.5,3209.8,1.5]
[1641611549622,0.216119,3210.5,3209.4,2.26935016]
[1641611549825,0.216119,3210.5,3209.9,0.84131906]
[1641611550022,0.216119,3210.5,3210.0,0.905575]
[1641611553828,2.00479,3210.9,3210.2,1.5]
[1641611554028,0.216119,3210.8,3210.2,0.5947]
[1641611554629,0.216119,3210.8,3210.5,2.00479]
[1641611554831,0.216119,3210.8,3210.6,1.31960316]
[1641611561338,0.216119,3210.8,3210.6,2.14530316]
[1641611562642,2.00479,3210.9,3210.6,2.14530316]
[1641611563041,2.220909,3210.9,3210.6,2.14530316]
[1641611568645,2.00479,3210.9,3210.7,0.264788]
[1641611572449,7.37879,3211.5,3210.7,1.764788]
[1641611572749,5.374,3211.5,3211.2,2.00479]
[1641611572948,5.374,3211.5,3211.3,0.264788]
[1641611573151,5.374,3211.5,3211.3,1.089688]
[1641611573349,5.374,3211.5,3211.4,0.85366605]
[1641611574455,3.56145494,3212.0,3211.4,0.85366605]
[1641611574654,3.77757394,3212.0,3211.4,0.85366605]
[1641611575856,3.77757394,3212.0,3211.5,0.264788]
[1641611576458,4.0,3211.7,3211.5,0.264788]
[1641611576658,0.216119,3211.6,3211.4,0.85366605]
[1641611578661,2.00479,3211.5,3211.4,0.85366605]
[1641611578860,3.50479,3211.5,3210.5,2.00479]
[1641611579061,4.0,3210.9,3210.1,61.525]
[1641611579261,1.55727583,3210.7,3208.9,1.55727583]
[1641611579463,2.17897583,3210.7,3209.3,32.35807823]
[1641611579763,2.17897583,3210.7,3209.6,0.76935016]
[1641611580764,1.5,3210.2,3209.8,2.00479]
[1641611580964,1.5,3210.2,3209.4,3.03239042]
[1641611580965,4.0,3209.9,3209.4,2.00479]
[1641611581163,4.6571,3209.9,3209.4,2.00479]
[1641611581362,0.216119,3209.8,3209.4,2.00479]
[1641611581564,1.716119,3209.8,3209.4,2.00479]
[1641611581765,1.716119,3209.8,3209.2,0.80035016]
[1641611581965,4.0,3209.4,3209.2,0.80035016]
[1641611582665,6.00479,3209.4,3209.2,0.80035016]
[1641611582866,0.216119,3209.3,3209.2,1.82452978]
[1641611583066,0.216119,3209.3,3209.2,1.05517962]
[1641611584666,2.00479,3209.4,3209.2,1.05517962]
[1641611586266,2.220909,3209.4,3209.2,1.05517962]
[1641611589271,2.220909,3209.4,3209.2,1.96747962]
[1641611591277,5.55798913,3209.3,3209.2,1.02417962]
[1641611591476,5.55798913,3209.3,3208.5,0.76935016]
[1641611591676,4.0,3208.6,3208.5,0.76935016]
[1641611592280,5.716119,3208.6,3208.5,0.81693645]
[1641611592479,7.94219861,3208.6,3208.0,1.30827823]
[1641611592678,5.5,3208.1,3208.0,1.30827823]
[1641611592878,9.725699,3208.1,3208.0,1.30427823]
[1641611593180,9.725699,3208.1,3207.2,3.58124044]
[1641611593181,14.713152,3208.1,3207.2,3.58124044]
[1641611593480,4.0,3207.6,3207.2,1.02669931]
[1641611593777,4.0,3207.6,3207.2,1.29148731]
[1641611594176,4.00958,3208.1,3207.2,1.29148731]
[1641611594378,0.216119,3208.0,3207.4,0.98244365]
[1641611594577,4.00958,3208.1,3207.5,0.264788]
[1641611595178,4.0,3207.7,3207.5,0.264788]
[1641611600983,4.00958,3208.1,3207.5,0.264788]
[1641611601384,4.225699,3208.1,3207.5,0.264788]
[1641611603585,0.216119,3208.0,3207.5,0.264788]
[1641611604288,4.00958,3208.1,3207.5,0.264788]
[1641611604487,4.0,3208.0,3207.5,0.264788]
[1641611604987,4.216119,3208.0,3207.5,0.264788]
[1641611605187,4.961319,3208.0,3207.5,0.264788]
[1641611605588,4.961319,3208.0,3207.4,2.98723365]
[1641611606089,4.961319,3208.0,3207.4,0.98244365]
[1641611607089,2.00479,3207.7,3207.4,0.98244365]
[1641611607289,2.220909,3207.7,3207.4,0.98244365]
[1641611610995,2.00479,3207.7,3207.4,0.98244365]
[1641611611998,2.00479,3207.7,3207.5,0.264788]
[1641611612197,2.00479,3207.7,3207.5,0.855988]
[1641611616003,3.5633692,3208.1,3207.6,0.640787]
[1641611616304,3.5633692,3208.1,3207.7,0.264788]
[1641611618504,7.5633692,3208.1,3207.7,0.264788]
[1641611622204,7.7794882,3208.1,3207.7,0.264788]
[1641611622404,6.220909,3208.1,3207.4,2.98723365]
[1641611623205,6.220909,3208.1,3207.5,0.264788]
[1641611623405,6.220909,3208.1,3207.5,0.905575]
[1641611624208,6.220909,3208.1,3207.5,0.264788]
[1641611624606,4.0,3207.6,3207.4,0.98244365]
[1641611628613,4.216119,3207.6,3207.4,0.98244365]
[1641611631523,4.0,3207.6,3207.4,0.98244365]